{"text_format":"3","workbook":"xlsx","n_sheets":3,"sheets":["Zapisnik o prijeđenim kilometri","Podaci za zapisnik","izračuni"],"not_rendered":{"charts":1,"defined_names":17},"read":"whole","date_system":"1900"}

{"sheet":"Zapisnik o prijeđenim kilometri","index":0,"n_rows":29,"n_cols":5,"rows_kept":29,"merged":[[0,1,1,7]]}
[null,"ZAPISNIK O PRIJEĐENIM KILOMETRIMA"]
{"$rows_empty":9}
[null,null,"KILOMETRI ZA",null,"UKUPNI IZNOS"]
[null,null,"POVRAT",null,"POVRATA"]
[]
[]
[]
[]
[null,null,"2012-05-01",null,"2012-05-10"]
[]
[null,null,"RAZDOBLJE",null,"RAZDOBLJE"]
[null,null,"POČETAK",null,"KRAJ"]
[]
[]
[]
[]
[]
[null,null,54,null,{"v":9800,"d":"9,800"}]
[]
[null,null,"POVRATA",null,"PRETHODNO STANJE GORIVA"]
[null,null,"lp/milja",null,"NA BROJAČU"]

{"sheet":"Podaci za zapisnik","index":1,"n_rows":19,"n_cols":15,"rows_kept":19,"merged":[[0,1,1,6]]}
[null,"ZAPISNIK O PRIJEĐENIM KILOMETRIMA"]
[{"$nulls":14}," "]
[]
[]
[null,"DATUM","AKTIVNOST","BROJAČ 1","MJESTO","BROJAČ 2","ODREDIŠTE","POVRAT","LITRE","CIJENA","KILOMETRI","POTROŠNJA PO KILOMETRU","lp/MILJA","NAPOMENE"]
[null,"2012-05-01","Put",{"v":10123,"d":"10,123"},"Chevron – Main St",{"v":10130,"d":"10,130"},null,null,15.56,{"v":64.11,"d":"64.11 kn"},{"$f":"milje","v":7},{"$f":"IF(OR(LEN(podaci[[#This Row],[BROJAČ 2]]),podaci[[#This Row],[BROJAČ 1]]=\"\"),\"\",IFERROR(podaci[[#This Row],[KILOMETRI]]/podaci[[#This Row],[LITRE]],\"\"))","v":""},{"$f":"IF(podaci[[#This Row],[POTROŠNJA PO KILOMETRU]]=\"\",\"\",100*podaci[[#This Row],[CIJENA]]/podaci[[#This Row],[KILOMETRI]])","v":""}]
[null,"2012-05-01","Put",{"v":10130,"d":"10,130"},"Ured",{"v":10200,"d":"10,200"},"Ulica trešanja","Da",null,"",{"$f":"milje","v":70},{"$f":"IF(OR(LEN(podaci[[#This Row],[BROJAČ 2]]),podaci[[#This Row],[BROJAČ 1]]=\"\"),\"\",IFERROR(podaci[[#This Row],[KILOMETRI]]/podaci[[#This Row],[LITRE]],\"\"))","v":""},{"$f":"IF(podaci[[#This Row],[POTROŠNJA PO KILOMETRU]]=\"\",\"\",100*podaci[[#This Row],[CIJENA]]/podaci[[#This Row],[KILOMETRI]])","v":""}]
[null,"2012-05-01","Put",{"v":10200,"d":"10,200"},"Smithfields",{"v":10285,"d":"10,285"},"Ured","Da",null,"",{"$f":"milje","v":85},{"$f":"IF(OR(LEN(podaci[[#This Row],[BROJAČ 2]]),podaci[[#This Row],[BROJAČ 1]]=\"\"),\"\",IFERROR(podaci[[#This Row],[KILOMETRI]]/podaci[[#This Row],[LITRE]],\"\"))","v":""},{"$f":"IF(podaci[[#This Row],[POTROŠNJA PO KILOMETRU]]=\"\",\"\",100*podaci[[#This Row],[CIJENA]]/podaci[[#This Row],[KILOMETRI]])","v":""}]
[null,"2012-05-02","Put",{"v":10285,"d":"10,285"},"Ured",{"v":10450,"d":"10,450"},"Vinograd Colo","Da",null,"",{"$f":"milje","v":165},{"$f":"IF(OR(LEN(podaci[[#This Row],[BROJAČ 2]]),podaci[[#This Row],[BROJAČ 1]]=\"\"),\"\",IFERROR(podaci[[#This Row],[KILOMETRI]]/podaci[[#This Row],[LITRE]],\"\"))","v":""},{"$f":"IF(podaci[[#This Row],[POTROŠNJA PO KILOMETRU]]=\"\",\"\",100*podaci[[#This Row],[CIJENA]]/podaci[[#This Row],[KILOMETRI]])","v":""}]
[null,"2012-05-02","Gorivo",{"v":10450,"d":"10,450"},"Shell",{"$nulls":3},{"v":11.2,"d":"11.20"},{"v":55.42,"d":"55.42 kn"},{"$f":"milje","v":650},{"$f":"IF(OR(LEN(podaci[[#This Row],[BROJAČ 2]]),podaci[[#This Row],[BROJAČ 1]]=\"\"),\"\",IFERROR(podaci[[#This Row],[KILOMETRI]]/podaci[[#This Row],[LITRE]],\"\"))","v":{"v":58.03571428571429,"d":"58.0"}},{"$f":"IF(podaci[[#This Row],[POTROŠNJA PO KILOMETRU]]=\"\",\"\",100*podaci[[#This Row],[CIJENA]]/podaci[[#This Row],[KILOMETRI]])","v":{"v":8.526153846153846,"d":"8.5"}}]
[null,"2012-05-02","Put",{"v":10500,"d":"10,500"},"Vinograd Colo",{"v":10518,"d":"10,518"},"Ured","Da",null,"",{"$f":"milje","v":18},{"$f":"IF(OR(LEN(podaci[[#This Row],[BROJAČ 2]]),podaci[[#This Row],[BROJAČ 1]]=\"\"),\"\",IFERROR(podaci[[#This Row],[KILOMETRI]]/podaci[[#This Row],[LITRE]],\"\"))","v":""},{"$f":"IF(podaci[[#This Row],[POTROŠNJA PO KILOMETRU]]=\"\",\"\",100*podaci[[#This Row],[CIJENA]]/podaci[[#This Row],[KILOMETRI]])","v":""}]
[null,"2012-05-03","Put",{"v":10518,"d":"10,518"},"Ured",{"v":10745,"d":"10,745"},"Ured","Da",null,"",{"$f":"milje","v":227},{"$f":"IF(OR(LEN(podaci[[#This Row],[BROJAČ 2]]),podaci[[#This Row],[BROJAČ 1]]=\"\"),\"\",IFERROR(podaci[[#This Row],[KILOMETRI]]/podaci[[#This Row],[LITRE]],\"\"))","v":""},{"$f":"IF(podaci[[#This Row],[POTROŠNJA PO KILOMETRU]]=\"\",\"\",100*podaci[[#This Row],[CIJENA]]/podaci[[#This Row],[KILOMETRI]])","v":""}]
[null,"2012-05-04","Gorivo",{"v":10745,"d":"10,745"},"Chevron – Main St",{"$nulls":3},{"v":16.6,"d":"16.60"},{"v":69.24,"d":"69.24 kn"},{"$f":"milje","v":295},{"$f":"IF(OR(LEN(podaci[[#This Row],[BROJAČ 2]]),podaci[[#This Row],[BROJAČ 1]]=\"\"),\"\",IFERROR(podaci[[#This Row],[KILOMETRI]]/podaci[[#This Row],[LITRE]],\"\"))","v":{"v":17.771084337349397,"d":"17.8"}},{"$f":"IF(podaci[[#This Row],[POTROŠNJA PO KILOMETRU]]=\"\",\"\",100*podaci[[#This Row],[CIJENA]]/podaci[[#This Row],[KILOMETRI]])","v":{"v":23.471186440677965,"d":"23.5"}}]
[null,"2012-05-04","Put",{"v":10745,"d":"10,745"},"Ured",{"v":10800,"d":"10,800"},"Porterville","Da",null,"",{"$f":"milje","v":55},{"$f":"IF(OR(LEN(podaci[[#This Row],[BROJAČ 2]]),podaci[[#This Row],[BROJAČ 1]]=\"\"),\"\",IFERROR(podaci[[#This Row],[KILOMETRI]]/podaci[[#This Row],[LITRE]],\"\"))","v":""},{"$f":"IF(podaci[[#This Row],[POTROŠNJA PO KILOMETRU]]=\"\",\"\",100*podaci[[#This Row],[CIJENA]]/podaci[[#This Row],[KILOMETRI]])","v":""}]
[null,"2012-05-04","Put",{"v":10800,"d":"10,800"},"Porterville",{"v":10875,"d":"10,875"},"Ured","Da",null,"",{"$f":"milje","v":75},{"$f":"IF(OR(LEN(podaci[[#This Row],[BROJAČ 2]]),podaci[[#This Row],[BROJAČ 1]]=\"\"),\"\",IFERROR(podaci[[#This Row],[KILOMETRI]]/podaci[[#This Row],[LITRE]],\"\"))","v":""},{"$f":"IF(podaci[[#This Row],[POTROŠNJA PO KILOMETRU]]=\"\",\"\",100*podaci[[#This Row],[CIJENA]]/podaci[[#This Row],[KILOMETRI]])","v":""}]
[null,"2012-05-07","Put",{"v":10875,"d":"10,875"},"Ured",{"v":10921,"d":"10,921"},"Ulica trešanja","Da",null,"",{"$f":"milje","v":46},{"$f":"IF(OR(LEN(podaci[[#This Row],[BROJAČ 2]]),podaci[[#This Row],[BROJAČ 1]]=\"\"),\"\",IFERROR(podaci[[#This Row],[KILOMETRI]]/podaci[[#This Row],[LITRE]],\"\"))","v":""},{"$f":"IF(podaci[[#This Row],[POTROŠNJA PO KILOMETRU]]=\"\",\"\",100*podaci[[#This Row],[CIJENA]]/podaci[[#This Row],[KILOMETRI]])","v":""}]
[null,"2012-05-07","Put",{"v":10921,"d":"10,921"},"Smithfields",{"v":10969,"d":"10,969"},"Ured","Da",null,"",{"$f":"milje","v":48},{"$f":"IF(OR(LEN(podaci[[#This Row],[BROJAČ 2]]),podaci[[#This Row],[BROJAČ 1]]=\"\"),\"\",IFERROR(podaci[[#This Row],[KILOMETRI]]/podaci[[#This Row],[LITRE]],\"\"))","v":""},{"$f":"IF(podaci[[#This Row],[POTROŠNJA PO KILOMETRU]]=\"\",\"\",100*podaci[[#This Row],[CIJENA]]/podaci[[#This Row],[KILOMETRI]])","v":""}]
[null,"2012-05-09","Put",{"v":10969,"d":"10,969"},"Ured",{"v":11000,"d":"11,000"},"Riverside","Da",null,"",{"$f":"milje","v":31},{"$f":"IF(OR(LEN(podaci[[#This Row],[BROJAČ 2]]),podaci[[#This Row],[BROJAČ 1]]=\"\"),\"\",IFERROR(podaci[[#This Row],[KILOMETRI]]/podaci[[#This Row],[LITRE]],\"\"))","v":""},{"$f":"IF(podaci[[#This Row],[POTROŠNJA PO KILOMETRU]]=\"\",\"\",100*podaci[[#This Row],[CIJENA]]/podaci[[#This Row],[KILOMETRI]])","v":""}]
[null,"2012-05-09","Put",{"v":11000,"d":"11,000"},"Riverside",{"v":11100,"d":"11,100"},"Kuća","Ne",null,"",{"$f":"milje","v":100},{"$f":"IF(OR(LEN(podaci[[#This Row],[BROJAČ 2]]),podaci[[#This Row],[BROJAČ 1]]=\"\"),\"\",IFERROR(podaci[[#This Row],[KILOMETRI]]/podaci[[#This Row],[LITRE]],\"\"))","v":""},{"$f":"IF(podaci[[#This Row],[POTROŠNJA PO KILOMETRU]]=\"\",\"\",100*podaci[[#This Row],[CIJENA]]/podaci[[#This Row],[KILOMETRI]])","v":""}]

{"sheet":"izračuni","index":2,"n_rows":69,"n_cols":13,"rows_kept":69,"hidden":true}
["*** Ovaj list mora ostati sakriven ***"]
[]
[]
[]
[]
[{"$nulls":8},{"$f":"OFFSET(I9,,drugaOsovina=\"Cijena goriva\")","v":"lp/milja"}]
[{"$nulls":12},2]
[{"$nulls":7},"Put","Gorivo","Gorivo",null,"Druga os:  ",{"$f":"REPT(\"Potrošnja po kilometru\",M7=1)&REPT(\"Cijena goriva\",M7=2)","v":"Cijena goriva"}]
[{"$nulls":7},"Prijeđeni kilometri","Potrošnja po kilometru","lp/milja"]
[null,null,"Kilometri za povrat:  ",{"$f":"SUMIFS(podaci[KILOMETRI],podaci[POVRAT],\"Da\",podaci[DATUM],\">=\"&razdobljePočetak,podaci[DATUM],\"<=\"&razdobljeKraj)","v":820},null,1,{"$f":"razdobljePočetak","v":"2012-05-01"},{"$f":"SUMIFS(podaci[KILOMETRI],podaci[DATUM],G10,podaci[AKTIVNOST],$H$8)","v":162},{"$f":"IFERROR(AVERAGEIFS(podaci[POTROŠNJA PO KILOMETRU],podaci[DATUM],G10,podaci[AKTIVNOST],$I$8),NA())","v":{"$error":"#N/A"}},{"$f":"IFERROR(AVERAGEIFS(podaci[lp/MILJA],podaci[DATUM],G10,podaci[AKTIVNOST],$J$8),NA())","v":{"$error":"#N/A"}}]
[null,null,"Ukupni iznos povrata: ",{"$f":"D10*PovratPoMilji/100","v":{"v":442.8,"d":"442.80 kn"}},null,2,{"$f":"G10+1","v":"2012-05-02"},{"$f":"SUMIFS(podaci[KILOMETRI],podaci[DATUM],G11,podaci[AKTIVNOST],$H$8)","v":183},{"$f":"IFERROR(AVERAGEIFS(podaci[POTROŠNJA PO KILOMETRU],podaci[DATUM],G11,podaci[AKTIVNOST],$I$8),NA())","v":{"v":58.03571428571429,"d":"58.0"}},{"$f":"IFERROR(AVERAGEIFS(podaci[lp/MILJA],podaci[DATUM],G11,podaci[AKTIVNOST],$J$8),NA())","v":{"v":8.526153846153846,"d":"8.5"}}]
[{"$nulls":5},3,"2012-05-03",{"$f":"SUMIFS(podaci[KILOMETRI],podaci[DATUM],G12,podaci[AKTIVNOST],$H$8)","v":227},{"$f":"IFERROR(AVERAGEIFS(podaci[POTROŠNJA PO KILOMETRU],podaci[DATUM],G12,podaci[AKTIVNOST],$I$8),NA())","v":{"$error":"#N/A"}},{"$f":"IFERROR(AVERAGEIFS(podaci[lp/MILJA],podaci[DATUM],G12,podaci[AKTIVNOST],$J$8),NA())","v":{"$error":"#N/A"}}]
[{"$nulls":5},4,"2012-05-04",{"$f":"SUMIFS(podaci[KILOMETRI],podaci[DATUM],G13,podaci[AKTIVNOST],$H$8)","v":130},{"$f":"IFERROR(AVERAGEIFS(podaci[POTROŠNJA PO KILOMETRU],podaci[DATUM],G13,podaci[AKTIVNOST],$I$8),NA())","v":{"v":17.771084337349397,"d":"17.8"}},{"$f":"IFERROR(AVERAGEIFS(podaci[lp/MILJA],podaci[DATUM],G13,podaci[AKTIVNOST],$J$8),NA())","v":{"v":23.471186440677965,"d":"23.5"}}]
[{"$nulls":5},5,"2012-05-05",{"$f":"SUMIFS(podaci[KILOMETRI],podaci[DATUM],G14,podaci[AKTIVNOST],$H$8)","v":0},{"$f":"IFERROR(AVERAGEIFS(podaci[POTROŠNJA PO KILOMETRU],podaci[DATUM],G14,podaci[AKTIVNOST],$I$8),NA())","v":{"$error":"#N/A"}},{"$f":"IFERROR(AVERAGEIFS(podaci[lp/MILJA],podaci[DATUM],G14,podaci[AKTIVNOST],$J$8),NA())","v":{"$error":"#N/A"}}]
[{"$nulls":5},6,"2012-05-06",{"$f":"SUMIFS(podaci[KILOMETRI],podaci[DATUM],G15,podaci[AKTIVNOST],$H$8)","v":0},{"$f":"IFERROR(AVERAGEIFS(podaci[POTROŠNJA PO KILOMETRU],podaci[DATUM],G15,podaci[AKTIVNOST],$I$8),NA())","v":{"$error":"#N/A"}},{"$f":"IFERROR(AVERAGEIFS(podaci[lp/MILJA],podaci[DATUM],G15,podaci[AKTIVNOST],$J$8),NA())","v":{"$error":"#N/A"}}]
[{"$nulls":5},7,"2012-05-07",{"$f":"SUMIFS(podaci[KILOMETRI],podaci[DATUM],G16,podaci[AKTIVNOST],$H$8)","v":94},{"$f":"IFERROR(AVERAGEIFS(podaci[POTROŠNJA PO KILOMETRU],podaci[DATUM],G16,podaci[AKTIVNOST],$I$8),NA())","v":{"$error":"#N/A"}},{"$f":"IFERROR(AVERAGEIFS(podaci[lp/MILJA],podaci[DATUM],G16,podaci[AKTIVNOST],$J$8),NA())","v":{"$error":"#N/A"}}]
[{"$nulls":5},8,"2012-05-08",{"$f":"SUMIFS(podaci[KILOMETRI],podaci[DATUM],G17,podaci[AKTIVNOST],$H$8)","v":0},{"$f":"IFERROR(AVERAGEIFS(podaci[POTROŠNJA PO KILOMETRU],podaci[DATUM],G17,podaci[AKTIVNOST],$I$8),NA())","v":{"$error":"#N/A"}},{"$f":"IFERROR(AVERAGEIFS(podaci[lp/MILJA],podaci[DATUM],G17,podaci[AKTIVNOST],$J$8),NA())","v":{"$error":"#N/A"}}]
[{"$nulls":5},9,"2012-05-09",{"$f":"SUMIFS(podaci[KILOMETRI],podaci[DATUM],G18,podaci[AKTIVNOST],$H$8)","v":131},{"$f":"IFERROR(AVERAGEIFS(podaci[POTROŠNJA PO KILOMETRU],podaci[DATUM],G18,podaci[AKTIVNOST],$I$8),NA())","v":{"$error":"#N/A"}},{"$f":"IFERROR(AVERAGEIFS(podaci[lp/MILJA],podaci[DATUM],G18,podaci[AKTIVNOST],$J$8),NA())","v":{"$error":"#N/A"}}]
[{"$nulls":5},10,"2012-05-10",{"$f":"SUMIFS(podaci[KILOMETRI],podaci[DATUM],G19,podaci[AKTIVNOST],$H$8)","v":0},{"$f":"IFERROR(AVERAGEIFS(podaci[POTROŠNJA PO KILOMETRU],podaci[DATUM],G19,podaci[AKTIVNOST],$I$8),NA())","v":{"$error":"#N/A"}},{"$f":"IFERROR(AVERAGEIFS(podaci[lp/MILJA],podaci[DATUM],G19,podaci[AKTIVNOST],$J$8),NA())","v":{"$error":"#N/A"}}]
[{"$nulls":5},11,"2012-05-11",{"$f":"SUMIFS(podaci[KILOMETRI],podaci[DATUM],G20,podaci[AKTIVNOST],$H$8)","v":0},{"$f":"IFERROR(AVERAGEIFS(podaci[POTROŠNJA PO KILOMETRU],podaci[DATUM],G20,podaci[AKTIVNOST],$I$8),NA())","v":{"$error":"#N/A"}},{"$f":"IFERROR(AVERAGEIFS(podaci[lp/MILJA],podaci[DATUM],G20,podaci[AKTIVNOST],$J$8),NA())","v":{"$error":"#N/A"}}]
[{"$nulls":5},12,"2012-05-12",{"$f":"SUMIFS(podaci[KILOMETRI],podaci[DATUM],G21,podaci[AKTIVNOST],$H$8)","v":0},{"$f":"IFERROR(AVERAGEIFS(podaci[POTROŠNJA PO KILOMETRU],podaci[DATUM],G21,podaci[AKTIVNOST],$I$8),NA())","v":{"$error":"#N/A"}},{"$f":"IFERROR(AVERAGEIFS(podaci[lp/MILJA],podaci[DATUM],G21,podaci[AKTIVNOST],$J$8),NA())","v":{"$error":"#N/A"}}]
[{"$nulls":5},13,"2012-05-13",{"$f":"SUMIFS(podaci[KILOMETRI],podaci[DATUM],G22,podaci[AKTIVNOST],$H$8)","v":0},{"$f":"IFERROR(AVERAGEIFS(podaci[POTROŠNJA PO KILOMETRU],podaci[DATUM],G22,podaci[AKTIVNOST],$I$8),NA())","v":{"$error":"#N/A"}},{"$f":"IFERROR(AVERAGEIFS(podaci[lp/MILJA],podaci[DATUM],G22,podaci[AKTIVNOST],$J$8),NA())","v":{"$error":"#N/A"}}]
[{"$nulls":5},14,"2012-05-14",{"$f":"SUMIFS(podaci[KILOMETRI],podaci[DATUM],G23,podaci[AKTIVNOST],$H$8)","v":0},{"$f":"IFERROR(AVERAGEIFS(podaci[POTROŠNJA PO KILOMETRU],podaci[DATUM],G23,podaci[AKTIVNOST],$I$8),NA())","v":{"$error":"#N/A"}},{"$f":"IFERROR(AVERAGEIFS(podaci[lp/MILJA],podaci[DATUM],G23,podaci[AKTIVNOST],$J$8),NA())","v":{"$error":"#N/A"}}]
[{"$nulls":5},15,"2012-05-15",{"$f":"SUMIFS(podaci[KILOMETRI],podaci[DATUM],G24,podaci[AKTIVNOST],$H$8)","v":0},{"$f":"IFERROR(AVERAGEIFS(podaci[POTROŠNJA PO KILOMETRU],podaci[DATUM],G24,podaci[AKTIVNOST],$I$8),NA())","v":{"$error":"#N/A"}},{"$f":"IFERROR(AVERAGEIFS(podaci[lp/MILJA],podaci[DATUM],G24,podaci[AKTIVNOST],$J$8),NA())","v":{"$error":"#N/A"}}]
[{"$nulls":5},16,"2012-05-16",{"$f":"SUMIFS(podaci[KILOMETRI],podaci[DATUM],G25,podaci[AKTIVNOST],$H$8)","v":0},{"$f":"IFERROR(AVERAGEIFS(podaci[POTROŠNJA PO KILOMETRU],podaci[DATUM],G25,podaci[AKTIVNOST],$I$8),NA())","v":{"$error":"#N/A"}},{"$f":"IFERROR(AVERAGEIFS(podaci[lp/MILJA],podaci[DATUM],G25,podaci[AKTIVNOST],$J$8),NA())","v":{"$error":"#N/A"}}]
[{"$nulls":5},17,"2012-05-17",{"$f":"SUMIFS(podaci[KILOMETRI],podaci[DATUM],G26,podaci[AKTIVNOST],$H$8)","v":0},{"$f":"IFERROR(AVERAGEIFS(podaci[POTROŠNJA PO KILOMETRU],podaci[DATUM],G26,podaci[AKTIVNOST],$I$8),NA())","v":{"$error":"#N/A"}},{"$f":"IFERROR(AVERAGEIFS(podaci[lp/MILJA],podaci[DATUM],G26,podaci[AKTIVNOST],$J$8),NA())","v":{"$error":"#N/A"}}]
[{"$nulls":5},18,"2012-05-18",{"$f":"SUMIFS(podaci[KILOMETRI],podaci[DATUM],G27,podaci[AKTIVNOST],$H$8)","v":0},{"$f":"IFERROR(AVERAGEIFS(podaci[POTROŠNJA PO KILOMETRU],podaci[DATUM],G27,podaci[AKTIVNOST],$I$8),NA())","v":{"$error":"#N/A"}},{"$f":"IFERROR(AVERAGEIFS(podaci[lp/MILJA],podaci[DATUM],G27,podaci[AKTIVNOST],$J$8),NA())","v":{"$error":"#N/A"}}]
[{"$nulls":5},19,"2012-05-19",{"$f":"SUMIFS(podaci[KILOMETRI],podaci[DATUM],G28,podaci[AKTIVNOST],$H$8)","v":0},{"$f":"IFERROR(AVERAGEIFS(podaci[POTROŠNJA PO KILOMETRU],podaci[DATUM],G28,podaci[AKTIVNOST],$I$8),NA())","v":{"$error":"#N/A"}},{"$f":"IFERROR(AVERAGEIFS(podaci[lp/MILJA],podaci[DATUM],G28,podaci[AKTIVNOST],$J$8),NA())","v":{"$error":"#N/A"}}]
[{"$nulls":5},20,"2012-05-20",{"$f":"SUMIFS(podaci[KILOMETRI],podaci[DATUM],G29,podaci[AKTIVNOST],$H$8)","v":0},{"$f":"IFERROR(AVERAGEIFS(podaci[POTROŠNJA PO KILOMETRU],podaci[DATUM],G29,podaci[AKTIVNOST],$I$8),NA())","v":{"$error":"#N/A"}},{"$f":"IFERROR(AVERAGEIFS(podaci[lp/MILJA],podaci[DATUM],G29,podaci[AKTIVNOST],$J$8),NA())","v":{"$error":"#N/A"}}]
[{"$nulls":5},21,"2012-05-21",{"$f":"SUMIFS(podaci[KILOMETRI],podaci[DATUM],G30,podaci[AKTIVNOST],$H$8)","v":0},{"$f":"IFERROR(AVERAGEIFS(podaci[POTROŠNJA PO KILOMETRU],podaci[DATUM],G30,podaci[AKTIVNOST],$I$8),NA())","v":{"$error":"#N/A"}},{"$f":"IFERROR(AVERAGEIFS(podaci[lp/MILJA],podaci[DATUM],G30,podaci[AKTIVNOST],$J$8),NA())","v":{"$error":"#N/A"}}]
[{"$nulls":5},22,"2012-05-22",{"$f":"SUMIFS(podaci[KILOMETRI],podaci[DATUM],G31,podaci[AKTIVNOST],$H$8)","v":0},{"$f":"IFERROR(AVERAGEIFS(podaci[POTROŠNJA PO KILOMETRU],podaci[DATUM],G31,podaci[AKTIVNOST],$I$8),NA())","v":{"$error":"#N/A"}},{"$f":"IFERROR(AVERAGEIFS(podaci[lp/MILJA],podaci[DATUM],G31,podaci[AKTIVNOST],$J$8),NA())","v":{"$error":"#N/A"}}]
[{"$nulls":5},23,"2012-05-23",{"$f":"SUMIFS(podaci[KILOMETRI],podaci[DATUM],G32,podaci[AKTIVNOST],$H$8)","v":0},{"$f":"IFERROR(AVERAGEIFS(podaci[POTROŠNJA PO KILOMETRU],podaci[DATUM],G32,podaci[AKTIVNOST],$I$8),NA())","v":{"$error":"#N/A"}},{"$f":"IFERROR(AVERAGEIFS(podaci[lp/MILJA],podaci[DATUM],G32,podaci[AKTIVNOST],$J$8),NA())","v":{"$error":"#N/A"}}]
[{"$nulls":5},24,"2012-05-24",{"$f":"SUMIFS(podaci[KILOMETRI],podaci[DATUM],G33,podaci[AKTIVNOST],$H$8)","v":0},{"$f":"IFERROR(AVERAGEIFS(podaci[POTROŠNJA PO KILOMETRU],podaci[DATUM],G33,podaci[AKTIVNOST],$I$8),NA())","v":{"$error":"#N/A"}},{"$f":"IFERROR(AVERAGEIFS(podaci[lp/MILJA],podaci[DATUM],G33,podaci[AKTIVNOST],$J$8),NA())","v":{"$error":"#N/A"}}]
[{"$nulls":5},25,"2012-05-25",{"$f":"SUMIFS(podaci[KILOMETRI],podaci[DATUM],G34,podaci[AKTIVNOST],$H$8)","v":0},{"$f":"IFERROR(AVERAGEIFS(podaci[POTROŠNJA PO KILOMETRU],podaci[DATUM],G34,podaci[AKTIVNOST],$I$8),NA())","v":{"$error":"#N/A"}},{"$f":"IFERROR(AVERAGEIFS(podaci[lp/MILJA],podaci[DATUM],G34,podaci[AKTIVNOST],$J$8),NA())","v":{"$error":"#N/A"}}]
[{"$nulls":5},26,"2012-05-26",{"$f":"SUMIFS(podaci[KILOMETRI],podaci[DATUM],G35,podaci[AKTIVNOST],$H$8)","v":0},{"$f":"IFERROR(AVERAGEIFS(podaci[POTROŠNJA PO KILOMETRU],podaci[DATUM],G35,podaci[AKTIVNOST],$I$8),NA())","v":{"$error":"#N/A"}},{"$f":"IFERROR(AVERAGEIFS(podaci[lp/MILJA],podaci[DATUM],G35,podaci[AKTIVNOST],$J$8),NA())","v":{"$error":"#N/A"}}]
[{"$nulls":5},27,"2012-05-27",{"$f":"SUMIFS(podaci[KILOMETRI],podaci[DATUM],G36,podaci[AKTIVNOST],$H$8)","v":0},{"$f":"IFERROR(AVERAGEIFS(podaci[POTROŠNJA PO KILOMETRU],podaci[DATUM],G36,podaci[AKTIVNOST],$I$8),NA())","v":{"$error":"#N/A"}},{"$f":"IFERROR(AVERAGEIFS(podaci[lp/MILJA],podaci[DATUM],G36,podaci[AKTIVNOST],$J$8),NA())","v":{"$error":"#N/A"}}]
[{"$nulls":5},28,"2012-05-28",{"$f":"SUMIFS(podaci[KILOMETRI],podaci[DATUM],G37,podaci[AKTIVNOST],$H$8)","v":0},{"$f":"IFERROR(AVERAGEIFS(podaci[POTROŠNJA PO KILOMETRU],podaci[DATUM],G37,podaci[AKTIVNOST],$I$8),NA())","v":{"$error":"#N/A"}},{"$f":"IFERROR(AVERAGEIFS(podaci[lp/MILJA],podaci[DATUM],G37,podaci[AKTIVNOST],$J$8),NA())","v":{"$error":"#N/A"}}]
[{"$nulls":5},29,"2012-05-29",{"$f":"SUMIFS(podaci[KILOMETRI],podaci[DATUM],G38,podaci[AKTIVNOST],$H$8)","v":0},{"$f":"IFERROR(AVERAGEIFS(podaci[POTROŠNJA PO KILOMETRU],podaci[DATUM],G38,podaci[AKTIVNOST],$I$8),NA())","v":{"$error":"#N/A"}},{"$f":"IFERROR(AVERAGEIFS(podaci[lp/MILJA],podaci[DATUM],G38,podaci[AKTIVNOST],$J$8),NA())","v":{"$error":"#N/A"}}]
[{"$nulls":5},30,"2012-05-30",{"$f":"SUMIFS(podaci[KILOMETRI],podaci[DATUM],G39,podaci[AKTIVNOST],$H$8)","v":0},{"$f":"IFERROR(AVERAGEIFS(podaci[POTROŠNJA PO KILOMETRU],podaci[DATUM],G39,podaci[AKTIVNOST],$I$8),NA())","v":{"$error":"#N/A"}},{"$f":"IFERROR(AVERAGEIFS(podaci[lp/MILJA],podaci[DATUM],G39,podaci[AKTIVNOST],$J$8),NA())","v":{"$error":"#N/A"}}]
[{"$nulls":5},31,"2012-05-31",{"$f":"SUMIFS(podaci[KILOMETRI],podaci[DATUM],G40,podaci[AKTIVNOST],$H$8)","v":0},{"$f":"IFERROR(AVERAGEIFS(podaci[POTROŠNJA PO KILOMETRU],podaci[DATUM],G40,podaci[AKTIVNOST],$I$8),NA())","v":{"$error":"#N/A"}},{"$f":"IFERROR(AVERAGEIFS(podaci[lp/MILJA],podaci[DATUM],G40,podaci[AKTIVNOST],$J$8),NA())","v":{"$error":"#N/A"}}]
[{"$nulls":5},32,"2012-06-01",{"$f":"SUMIFS(podaci[KILOMETRI],podaci[DATUM],G41,podaci[AKTIVNOST],$H$8)","v":0},{"$f":"IFERROR(AVERAGEIFS(podaci[POTROŠNJA PO KILOMETRU],podaci[DATUM],G41,podaci[AKTIVNOST],$I$8),NA())","v":{"$error":"#N/A"}},{"$f":"IFERROR(AVERAGEIFS(podaci[lp/MILJA],podaci[DATUM],G41,podaci[AKTIVNOST],$J$8),NA())","v":{"$error":"#N/A"}}]
[{"$nulls":5},33,"2012-06-02",{"$f":"SUMIFS(podaci[KILOMETRI],podaci[DATUM],G42,podaci[AKTIVNOST],$H$8)","v":0},{"$f":"IFERROR(AVERAGEIFS(podaci[POTROŠNJA PO KILOMETRU],podaci[DATUM],G42,podaci[AKTIVNOST],$I$8),NA())","v":{"$error":"#N/A"}},{"$f":"IFERROR(AVERAGEIFS(podaci[lp/MILJA],podaci[DATUM],G42,podaci[AKTIVNOST],$J$8),NA())","v":{"$error":"#N/A"}}]
[{"$nulls":5},34,{"$f":"G42+1","v":"2012-06-03"},{"$f":"SUMIFS(podaci[KILOMETRI],podaci[DATUM],G43,podaci[AKTIVNOST],$H$8)","v":0},{"$f":"IFERROR(AVERAGEIFS(podaci[POTROŠNJA PO KILOMETRU],podaci[DATUM],G43,podaci[AKTIVNOST],$I$8),NA())","v":{"$error":"#N/A"}},{"$f":"IFERROR(AVERAGEIFS(podaci[lp/MILJA],podaci[DATUM],G43,podaci[AKTIVNOST],$J$8),NA())","v":{"$error":"#N/A"}}]
[{"$nulls":5},35,"2012-06-04",{"$f":"SUMIFS(podaci[KILOMETRI],podaci[DATUM],G44,podaci[AKTIVNOST],$H$8)","v":0},{"$f":"IFERROR(AVERAGEIFS(podaci[POTROŠNJA PO KILOMETRU],podaci[DATUM],G44,podaci[AKTIVNOST],$I$8),NA())","v":{"$error":"#N/A"}},{"$f":"IFERROR(AVERAGEIFS(podaci[lp/MILJA],podaci[DATUM],G44,podaci[AKTIVNOST],$J$8),NA())","v":{"$error":"#N/A"}}]
[{"$nulls":5},36,"2012-06-05",{"$f":"SUMIFS(podaci[KILOMETRI],podaci[DATUM],G45,podaci[AKTIVNOST],$H$8)","v":0},{"$f":"IFERROR(AVERAGEIFS(podaci[POTROŠNJA PO KILOMETRU],podaci[DATUM],G45,podaci[AKTIVNOST],$I$8),NA())","v":{"$error":"#N/A"}},{"$f":"IFERROR(AVERAGEIFS(podaci[lp/MILJA],podaci[DATUM],G45,podaci[AKTIVNOST],$J$8),NA())","v":{"$error":"#N/A"}}]
[{"$nulls":5},37,"2012-06-06",{"$f":"SUMIFS(podaci[KILOMETRI],podaci[DATUM],G46,podaci[AKTIVNOST],$H$8)","v":0},{"$f":"IFERROR(AVERAGEIFS(podaci[POTROŠNJA PO KILOMETRU],podaci[DATUM],G46,podaci[AKTIVNOST],$I$8),NA())","v":{"$error":"#N/A"}},{"$f":"IFERROR(AVERAGEIFS(podaci[lp/MILJA],podaci[DATUM],G46,podaci[AKTIVNOST],$J$8),NA())","v":{"$error":"#N/A"}}]
[{"$nulls":5},38,"2012-06-07",{"$f":"SUMIFS(podaci[KILOMETRI],podaci[DATUM],G47,podaci[AKTIVNOST],$H$8)","v":0},{"$f":"IFERROR(AVERAGEIFS(podaci[POTROŠNJA PO KILOMETRU],podaci[DATUM],G47,podaci[AKTIVNOST],$I$8),NA())","v":{"$error":"#N/A"}},{"$f":"IFERROR(AVERAGEIFS(podaci[lp/MILJA],podaci[DATUM],G47,podaci[AKTIVNOST],$J$8),NA())","v":{"$error":"#N/A"}}]
[{"$nulls":5},39,"2012-06-08",{"$f":"SUMIFS(podaci[KILOMETRI],podaci[DATUM],G48,podaci[AKTIVNOST],$H$8)","v":0},{"$f":"IFERROR(AVERAGEIFS(podaci[POTROŠNJA PO KILOMETRU],podaci[DATUM],G48,podaci[AKTIVNOST],$I$8),NA())","v":{"$error":"#N/A"}},{"$f":"IFERROR(AVERAGEIFS(podaci[lp/MILJA],podaci[DATUM],G48,podaci[AKTIVNOST],$J$8),NA())","v":{"$error":"#N/A"}}]
[{"$nulls":5},40,"2012-06-09",{"$f":"SUMIFS(podaci[KILOMETRI],podaci[DATUM],G49,podaci[AKTIVNOST],$H$8)","v":0},{"$f":"IFERROR(AVERAGEIFS(podaci[POTROŠNJA PO KILOMETRU],podaci[DATUM],G49,podaci[AKTIVNOST],$I$8),NA())","v":{"$error":"#N/A"}},{"$f":"IFERROR(AVERAGEIFS(podaci[lp/MILJA],podaci[DATUM],G49,podaci[AKTIVNOST],$J$8),NA())","v":{"$error":"#N/A"}}]
[{"$nulls":5},41,"2012-06-10",{"$f":"SUMIFS(podaci[KILOMETRI],podaci[DATUM],G50,podaci[AKTIVNOST],$H$8)","v":0},{"$f":"IFERROR(AVERAGEIFS(podaci[POTROŠNJA PO KILOMETRU],podaci[DATUM],G50,podaci[AKTIVNOST],$I$8),NA())","v":{"$error":"#N/A"}},{"$f":"IFERROR(AVERAGEIFS(podaci[lp/MILJA],podaci[DATUM],G50,podaci[AKTIVNOST],$J$8),NA())","v":{"$error":"#N/A"}}]
[{"$nulls":5},42,"2012-06-11",{"$f":"SUMIFS(podaci[KILOMETRI],podaci[DATUM],G51,podaci[AKTIVNOST],$H$8)","v":0},{"$f":"IFERROR(AVERAGEIFS(podaci[POTROŠNJA PO KILOMETRU],podaci[DATUM],G51,podaci[AKTIVNOST],$I$8),NA())","v":{"$error":"#N/A"}},{"$f":"IFERROR(AVERAGEIFS(podaci[lp/MILJA],podaci[DATUM],G51,podaci[AKTIVNOST],$J$8),NA())","v":{"$error":"#N/A"}}]
[{"$nulls":5},43,"2012-06-12",{"$f":"SUMIFS(podaci[KILOMETRI],podaci[DATUM],G52,podaci[AKTIVNOST],$H$8)","v":0},{"$f":"IFERROR(AVERAGEIFS(podaci[POTROŠNJA PO KILOMETRU],podaci[DATUM],G52,podaci[AKTIVNOST],$I$8),NA())","v":{"$error":"#N/A"}},{"$f":"IFERROR(AVERAGEIFS(podaci[lp/MILJA],podaci[DATUM],G52,podaci[AKTIVNOST],$J$8),NA())","v":{"$error":"#N/A"}}]
[{"$nulls":5},44,"2012-06-13",{"$f":"SUMIFS(podaci[KILOMETRI],podaci[DATUM],G53,podaci[AKTIVNOST],$H$8)","v":0},{"$f":"IFERROR(AVERAGEIFS(podaci[POTROŠNJA PO KILOMETRU],podaci[DATUM],G53,podaci[AKTIVNOST],$I$8),NA())","v":{"$error":"#N/A"}},{"$f":"IFERROR(AVERAGEIFS(podaci[lp/MILJA],podaci[DATUM],G53,podaci[AKTIVNOST],$J$8),NA())","v":{"$error":"#N/A"}}]
[{"$nulls":5},45,"2012-06-14",{"$f":"SUMIFS(podaci[KILOMETRI],podaci[DATUM],G54,podaci[AKTIVNOST],$H$8)","v":0},{"$f":"IFERROR(AVERAGEIFS(podaci[POTROŠNJA PO KILOMETRU],podaci[DATUM],G54,podaci[AKTIVNOST],$I$8),NA())","v":{"$error":"#N/A"}},{"$f":"IFERROR(AVERAGEIFS(podaci[lp/MILJA],podaci[DATUM],G54,podaci[AKTIVNOST],$J$8),NA())","v":{"$error":"#N/A"}}]
[{"$nulls":5},46,"2012-06-15",{"$f":"SUMIFS(podaci[KILOMETRI],podaci[DATUM],G55,podaci[AKTIVNOST],$H$8)","v":0},{"$f":"IFERROR(AVERAGEIFS(podaci[POTROŠNJA PO KILOMETRU],podaci[DATUM],G55,podaci[AKTIVNOST],$I$8),NA())","v":{"$error":"#N/A"}},{"$f":"IFERROR(AVERAGEIFS(podaci[lp/MILJA],podaci[DATUM],G55,podaci[AKTIVNOST],$J$8),NA())","v":{"$error":"#N/A"}}]
[{"$nulls":5},47,"2012-06-16",{"$f":"SUMIFS(podaci[KILOMETRI],podaci[DATUM],G56,podaci[AKTIVNOST],$H$8)","v":0},{"$f":"IFERROR(AVERAGEIFS(podaci[POTROŠNJA PO KILOMETRU],podaci[DATUM],G56,podaci[AKTIVNOST],$I$8),NA())","v":{"$error":"#N/A"}},{"$f":"IFERROR(AVERAGEIFS(podaci[lp/MILJA],podaci[DATUM],G56,podaci[AKTIVNOST],$J$8),NA())","v":{"$error":"#N/A"}}]
[{"$nulls":5},48,"2012-06-17",{"$f":"SUMIFS(podaci[KILOMETRI],podaci[DATUM],G57,podaci[AKTIVNOST],$H$8)","v":0},{"$f":"IFERROR(AVERAGEIFS(podaci[POTROŠNJA PO KILOMETRU],podaci[DATUM],G57,podaci[AKTIVNOST],$I$8),NA())","v":{"$error":"#N/A"}},{"$f":"IFERROR(AVERAGEIFS(podaci[lp/MILJA],podaci[DATUM],G57,podaci[AKTIVNOST],$J$8),NA())","v":{"$error":"#N/A"}}]
[{"$nulls":5},49,"2012-06-18",{"$f":"SUMIFS(podaci[KILOMETRI],podaci[DATUM],G58,podaci[AKTIVNOST],$H$8)","v":0},{"$f":"IFERROR(AVERAGEIFS(podaci[POTROŠNJA PO KILOMETRU],podaci[DATUM],G58,podaci[AKTIVNOST],$I$8),NA())","v":{"$error":"#N/A"}},{"$f":"IFERROR(AVERAGEIFS(podaci[lp/MILJA],podaci[DATUM],G58,podaci[AKTIVNOST],$J$8),NA())","v":{"$error":"#N/A"}}]
[{"$nulls":5},50,"2012-06-19",{"$f":"SUMIFS(podaci[KILOMETRI],podaci[DATUM],G59,podaci[AKTIVNOST],$H$8)","v":0},{"$f":"IFERROR(AVERAGEIFS(podaci[POTROŠNJA PO KILOMETRU],podaci[DATUM],G59,podaci[AKTIVNOST],$I$8),NA())","v":{"$error":"#N/A"}},{"$f":"IFERROR(AVERAGEIFS(podaci[lp/MILJA],podaci[DATUM],G59,podaci[AKTIVNOST],$J$8),NA())","v":{"$error":"#N/A"}}]
[{"$nulls":5},51,"2012-06-20",{"$f":"SUMIFS(podaci[KILOMETRI],podaci[DATUM],G60,podaci[AKTIVNOST],$H$8)","v":0},{"$f":"IFERROR(AVERAGEIFS(podaci[POTROŠNJA PO KILOMETRU],podaci[DATUM],G60,podaci[AKTIVNOST],$I$8),NA())","v":{"$error":"#N/A"}},{"$f":"IFERROR(AVERAGEIFS(podaci[lp/MILJA],podaci[DATUM],G60,podaci[AKTIVNOST],$J$8),NA())","v":{"$error":"#N/A"}}]
[{"$nulls":5},52,"2012-06-21",{"$f":"SUMIFS(podaci[KILOMETRI],podaci[DATUM],G61,podaci[AKTIVNOST],$H$8)","v":0},{"$f":"IFERROR(AVERAGEIFS(podaci[POTROŠNJA PO KILOMETRU],podaci[DATUM],G61,podaci[AKTIVNOST],$I$8),NA())","v":{"$error":"#N/A"}},{"$f":"IFERROR(AVERAGEIFS(podaci[lp/MILJA],podaci[DATUM],G61,podaci[AKTIVNOST],$J$8),NA())","v":{"$error":"#N/A"}}]
[{"$nulls":5},53,"2012-06-22",{"$f":"SUMIFS(podaci[KILOMETRI],podaci[DATUM],G62,podaci[AKTIVNOST],$H$8)","v":0},{"$f":"IFERROR(AVERAGEIFS(podaci[POTROŠNJA PO KILOMETRU],podaci[DATUM],G62,podaci[AKTIVNOST],$I$8),NA())","v":{"$error":"#N/A"}},{"$f":"IFERROR(AVERAGEIFS(podaci[lp/MILJA],podaci[DATUM],G62,podaci[AKTIVNOST],$J$8),NA())","v":{"$error":"#N/A"}}]
[{"$nulls":5},54,"2012-06-23",{"$f":"SUMIFS(podaci[KILOMETRI],podaci[DATUM],G63,podaci[AKTIVNOST],$H$8)","v":0},{"$f":"IFERROR(AVERAGEIFS(podaci[POTROŠNJA PO KILOMETRU],podaci[DATUM],G63,podaci[AKTIVNOST],$I$8),NA())","v":{"$error":"#N/A"}},{"$f":"IFERROR(AVERAGEIFS(podaci[lp/MILJA],podaci[DATUM],G63,podaci[AKTIVNOST],$J$8),NA())","v":{"$error":"#N/A"}}]
[{"$nulls":5},55,"2012-06-24",{"$f":"SUMIFS(podaci[KILOMETRI],podaci[DATUM],G64,podaci[AKTIVNOST],$H$8)","v":0},{"$f":"IFERROR(AVERAGEIFS(podaci[POTROŠNJA PO KILOMETRU],podaci[DATUM],G64,podaci[AKTIVNOST],$I$8),NA())","v":{"$error":"#N/A"}},{"$f":"IFERROR(AVERAGEIFS(podaci[lp/MILJA],podaci[DATUM],G64,podaci[AKTIVNOST],$J$8),NA())","v":{"$error":"#N/A"}}]
[{"$nulls":5},56,"2012-06-25",{"$f":"SUMIFS(podaci[KILOMETRI],podaci[DATUM],G65,podaci[AKTIVNOST],$H$8)","v":0},{"$f":"IFERROR(AVERAGEIFS(podaci[POTROŠNJA PO KILOMETRU],podaci[DATUM],G65,podaci[AKTIVNOST],$I$8),NA())","v":{"$error":"#N/A"}},{"$f":"IFERROR(AVERAGEIFS(podaci[lp/MILJA],podaci[DATUM],G65,podaci[AKTIVNOST],$J$8),NA())","v":{"$error":"#N/A"}}]
[{"$nulls":5},57,"2012-06-26",{"$f":"SUMIFS(podaci[KILOMETRI],podaci[DATUM],G66,podaci[AKTIVNOST],$H$8)","v":0},{"$f":"IFERROR(AVERAGEIFS(podaci[POTROŠNJA PO KILOMETRU],podaci[DATUM],G66,podaci[AKTIVNOST],$I$8),NA())","v":{"$error":"#N/A"}},{"$f":"IFERROR(AVERAGEIFS(podaci[lp/MILJA],podaci[DATUM],G66,podaci[AKTIVNOST],$J$8),NA())","v":{"$error":"#N/A"}}]
[{"$nulls":5},58,"2012-06-27",{"$f":"SUMIFS(podaci[KILOMETRI],podaci[DATUM],G67,podaci[AKTIVNOST],$H$8)","v":0},{"$f":"IFERROR(AVERAGEIFS(podaci[POTROŠNJA PO KILOMETRU],podaci[DATUM],G67,podaci[AKTIVNOST],$I$8),NA())","v":{"$error":"#N/A"}},{"$f":"IFERROR(AVERAGEIFS(podaci[lp/MILJA],podaci[DATUM],G67,podaci[AKTIVNOST],$J$8),NA())","v":{"$error":"#N/A"}}]
[{"$nulls":5},59,"2012-06-28",{"$f":"SUMIFS(podaci[KILOMETRI],podaci[DATUM],G68,podaci[AKTIVNOST],$H$8)","v":0},{"$f":"IFERROR(AVERAGEIFS(podaci[POTROŠNJA PO KILOMETRU],podaci[DATUM],G68,podaci[AKTIVNOST],$I$8),NA())","v":{"$error":"#N/A"}},{"$f":"IFERROR(AVERAGEIFS(podaci[lp/MILJA],podaci[DATUM],G68,podaci[AKTIVNOST],$J$8),NA())","v":{"$error":"#N/A"}}]
[{"$nulls":5},60,"2012-06-29",{"$f":"SUMIFS(podaci[KILOMETRI],podaci[DATUM],G69,podaci[AKTIVNOST],$H$8)","v":0},{"$f":"IFERROR(AVERAGEIFS(podaci[POTROŠNJA PO KILOMETRU],podaci[DATUM],G69,podaci[AKTIVNOST],$I$8),NA())","v":{"$error":"#N/A"}},{"$f":"IFERROR(AVERAGEIFS(podaci[lp/MILJA],podaci[DATUM],G69,podaci[AKTIVNOST],$J$8),NA())","v":{"$error":"#N/A"}}]